fUSD/lending_fUSD_20251113
["ID","MTS","AMOUNT","RATE_DAILY","PERIOD"]
[393876796,1763062211184,300.0,0.00016999,2]
[393876797,1763062211464,835.45,0.0001699,2]
[393876798,1763062211646,-439.13947357,0.00016999,2]
[393876799,1763062212024,245.8914629,0.0001699,2]
[393876800,1763062212046,589.5585371,0.0001699,2]
[393876801,1763062212246,835.45,0.0001699,2]
[393876802,1763062212508,835.45,0.0001699,2]
[393876803,1763062212752,835.45,0.0001699,2]
[393876804,1763062214776,-31.06800379,0.00016999,2]
[393876805,1763062214800,-302.27199638,0.00016999,2]
[393876806,1763062214911,1172.4,0.0001699,2]
[393876807,1763062215293,1172.4,0.0001699,2]
[393876808,1763062216406,-197.72800362,0.00016999,2]
[393876809,1763062216428,-141.95110132,0.00016999,2]
[393876810,1763062219707,-289.89031148,0.00016999,2]
[393876811,1763062221381,163.63,0.0001699,2]
[393876812,1763062221643,163.63,0.0001699,2]
[393876813,1763062221853,163.63,0.0001699,2]
[393876814,1763062223147,2313.95426267,0.0001699,2]
[393876815,1763062223228,1754.45720023,0.0001699,2]
[393876816,1763062223254,559.49706244,0.0001699,2]
[393876817,1763062223306,-68.1585872,0.00016999,2]
[393876818,1763062223334,-239.92954729,0.00016999,2]
[393876819,1763062225393,-260.07045271,0.00016999,2]
[393876820,1763062225417,-201.7718068,0.00016999,2]
[393876821,1763062228098,200.34,0.0001699,2]
[393876822,1763062228318,200.34,0.0001699,2]
[393876823,1763062228525,200.34,0.0001699,2]
[393876824,1763062228742,200.34,0.0001699,2]
[393876825,1763062228969,200.34,0.0001699,2]
[393876826,1763062229163,-180.68372135,0.00016999,2]
[393876827,1763062230093,220.85198777,0.000169,2]
[393876828,1763062230140,500.0,0.00016999,2]
[393876829,1763062230174,1173.38,0.0001699,2]
[393876830,1763062230337,550.289723,0.00016999,2]
[393876831,1763062230365,1173.38,0.0001699,2]
[393876832,1763062231096,-117.54447185,0.00016999,2]
[393876833,1763062231122,-390.55210059,0.00016999,2]
[393876857,1763062231543,-109.44789941,0.00016999,2]
[393876861,1763062231553,-279.63846075,0.00016999,2]
[393876863,1763062231565,-220.36153925,0.00016999,2]
[393876865,1763062231575,-500.0,0.00016999,2]
[393876867,1763062231584,-500.0,0.00016999,2]
[393876869,1763062231593,-210.08440425,0.00016999,2]
[393876876,1763062231648,-289.91559575,0.00016999,2]
[393876878,1763062231658,-500.0,0.00016999,2]
[393876879,1763062231667,-237.03749105,0.00016999,2]
[393876880,1763062231679,-262.96250895,0.00016999,2]
[393876881,1763062231690,-127.63868837,0.00016999,2]
[393876882,1763062231750,500.0,0.000169,2]
[393876883,1763062231811,-372.36131163,0.00016999,2]
[393876884,1763062231820,-257.31034639,0.00016999,2]
[393876885,1763062231829,-500.0,0.00016999,2]
[393876886,1763062231839,-500.0,0.00016999,2]
[393876887,1763062231848,-500.0,0.00016999,2]
[393876888,1763062231858,-500.0,0.00016999,2]
[393876889,1763062231872,-500.0,0.00016999,2]
[393876890,1763062231882,-500.0,0.00016999,2]
[393876891,1763062231891,-500.0,0.00016999,2]
[393876892,1763062232033,-500.0,0.00016999,2]
[393876893,1763062232043,-500.0,0.00016999,2]
[393876895,1763062232052,-500.0,0.00016999,2]
[393876897,1763062232062,-500.0,0.00016999,2]
[393876898,1763062232072,-500.0,0.00016999,2]
[393876899,1763062232082,-500.0,0.00016999,2]
[393876900,1763062232092,-500.0,0.00016999,2]
[393876901,1763062232102,-500.0,0.00016999,2]
[393876903,1763062232112,-500.0,0.00016999,2]
[393876905,1763062232122,-500.0,0.00016999,2]
[393876907,1763062232131,-176.02723997,0.00016999,2]
[393876910,1763062232141,-500.0,0.00016999,2]
[393876912,1763062232151,-318.33264924,0.00016999,2]
[393876914,1763062232161,-500.0,0.00016999,2]
[393876916,1763062232170,-500.0,0.00016999,2]
[393876919,1763062232183,-301.48896148,0.00016999,2]
[393876922,1763062232192,-500.0,0.00016999,2]
[393876925,1763062232201,-500.0,0.00016999,2]
[393876929,1763062232211,-628.43818476,0.00016999,2]
[393876930,1763062232220,-500.0,0.00016999,2]
[393876932,1763062232229,-551.38970519,0.00016999,2]
[393876933,1763062232238,-500.0,0.00016999,2]
[393876934,1763062232247,-500.0,0.00016999,2]
[393876936,1763062232256,-500.0,0.00016999,2]
[393876938,1763062232266,-387.21172421,0.00016999,2]
[393876939,1763062232280,-112.78827579,0.00016999,2]
[393876940,1763062232290,-452.98279014,0.00016999,2]
[393876941,1763062232300,-500.0,0.00016999,2]
[393876942,1763062232309,-181.92657324,0.00016999,2]
[393876943,1763062232318,-500.0,0.00016999,2]
[393876944,1763062232328,-500.0,0.00016999,2]
[393876945,1763062232338,-500.0,0.00016999,2]
[393876946,1763062232347,-500.0,0.00016999,2]
[393876947,1763062232356,-500.0,0.00016999,2]
[393876948,1763062232365,-479.81265708,0.00016999,2]
[393876949,1763062232375,-500.0,0.00016999,2]
[393876950,1763062232384,-500.0,0.00016999,2]
[393876951,1763062232395,-500.0,0.00016999,2]
[393876952,1763062232404,-500.0,0.00016999,2]
[393876953,1763062232413,-500.0,0.00016999,2]
[393876954,1763062232422,-500.0,0.00016999,2]
[393876955,1763062232434,-500.0,0.00016999,2]
[393876956,1763062232443,-500.0,0.00016999,2]
[393876957,1763062232453,-500.0,0.00016999,2]
[393876958,1763062232462,-500.0,0.00016999,2]
[393876959,1763062232472,-500.0,0.00016999,2]
[393876960,1763062232481,-500.0,0.00016999,2]
[393876961,1763062232490,-500.0,0.00016999,2]
[393876962,1763062232500,-500.0,0.00016999,2]
[393876963,1763062232509,-500.0,0.00016999,2]
[393876964,1763062232518,-500.0,0.00016999,2]
[393876965,1763062232527,-500.0,0.00016999,2]
[393876966,1763062232536,-500.0,0.00016999,2]
[393876967,1763062232545,-500.0,0.00016999,2]
[393876968,1763062232554,-500.0,0.00016999,2]
[393876969,1763062232564,-500.0,0.00016999,2]
[393876970,1763062232573,-500.0,0.00016999,2]
[393876971,1763062232583,-500.0,0.00016999,2]
[393876972,1763062232593,-500.0,0.00016999,2]
[393876973,1763062232603,-500.0,0.00016999,2]
[393876974,1763062232612,-500.0,0.00016999,2]
[393876975,1763062232622,-500.0,0.00016999,2]
[393876976,1763062232632,-637.34792893,0.00016999,2]
[393876977,1763062232642,-500.0,0.00016999,2]
[393876978,1763062232653,-555.52653275,0.00016999,2]
[393876979,1763062232662,-500.0,0.00016999,2]
[393876980,1763062232671,-500.0,0.00016999,2]
[393876981,1763062232685,-2146.17080299,0.00016999,2]
[393876982,1763062232694,-2146.17080299,0.00016999,2]
[393876983,1763062232703,-2146.17080299,0.00016999,2]
[393876984,1763062232713,-2146.17080299,0.00016999,2]
[393876985,1763062232722,-2146.17080299,0.00016999,2]
[393876986,1763062232732,-2146.17080299,0.00016999,2]
[393876987,1763062232742,-2146.17080299,0.00016999,2]
[393876988,1763062232751,-2146.17080299,0.00016999,2]
[393876989,1763062232761,-2146.17080299,0.00016999,2]
[393876990,1763062232770,-2146.17080299,0.00016999,2]
[393876991,1763062232779,-2146.17080299,0.00016999,2]
[393876992,1763062232788,-2146.17080299,0.00016999,2]
[393876993,1763062232797,-2146.17080299,0.00016999,2]
[393876994,1763062232807,-2146.17080299,0.00016999,2]
[393876995,1763062232817,-2146.17080299,0.00016999,2]
[393876996,1763062232827,-2146.17080299,0.00016999,2]
[393876997,1763062232836,-2146.17080299,0.00016999,2]
[393876998,1763062232845,-2146.17080299,0.00016999,2]
[393876999,1763062232854,-2146.17080299,0.00016999,2]
[393877000,1763062232865,-2146.17080299,0.00016999,2]
[393877001,1763062232876,-2146.17080299,0.00016999,2]
[393877002,1763062232886,-2146.17080299,0.00016999,2]
[393877003,1763062232898,-2146.17080299,0.00016999,2]
[393877004,1763062232907,-2146.17080299,0.00016999,2]
[393877005,1763062232917,-2146.17080299,0.00016999,2]
[393877006,1763062232927,-2146.17080299,0.00016999,2]
[393877007,1763062232939,-2146.17080299,0.00016999,2]
[393877008,1763062232948,-2146.17080299,0.00016999,2]
[393877009,1763062232960,-2146.17080299,0.00016999,2]
[393877010,1763062232969,-2146.17080299,0.00016999,2]
[393877011,1763062232979,-2146.17080299,0.00016999,2]
[393877012,1763062232988,-2146.17080299,0.00016999,2]
[393877013,1763062232997,-2146.17080299,0.00016999,2]
[393877014,1763062233007,-2146.17080299,0.00016999,2]
[393877015,1763062233017,-2146.17080299,0.00016999,2]
[393877016,1763062233027,-2146.17080299,0.00016999,2]
[393877017,1763062233036,-2133.90696983,0.00016999,2]
[393877018,1763062233045,-2133.90696983,0.00016999,2]
[393877019,1763062233054,-2133.90696983,0.00016999,2]
[393877020,1763062233064,-2133.90696983,0.00016999,2]
[393877021,1763062233073,-2133.90696983,0.00016999,2]
[393877022,1763062233082,-2133.90696983,0.00016999,2]
[393877023,1763062233091,-2133.90696983,0.00016999,2]
[393877024,1763062233101,-2133.90696983,0.00016999,2]
[393877025,1763062233110,-2133.90696983,0.00016999,2]
[393877026,1763062233120,-2133.90696983,0.00016999,2]
[393877027,1763062233129,-2133.90696983,0.00016999,2]
[393877028,1763062233139,-2133.90696983,0.00016999,2]
[393877029,1763062233148,-2133.90696983,0.00016999,2]
[393877030,1763062233159,-2133.90696983,0.00016999,2]
[393877031,1763062233169,-2133.90696983,0.00016999,2]
[393877032,1763062233178,-2133.90696983,0.00016999,2]
[393877033,1763062233191,-2133.90696983,0.00016999,2]
[393877034,1763062233200,-2133.90696983,0.00016999,2]
[393877035,1763062233210,-2133.90696983,0.00016999,2]
[393877036,1763062233220,-2133.90696983,0.00016999,2]
[393877037,1763062233230,-2133.90696983,0.00016999,2]
[393877038,1763062233239,-2133.90696983,0.00016999,2]
[393877039,1763062233248,-2133.90696983,0.00016999,2]
[393877040,1763062233258,-2133.90696983,0.00016999,2]
[393877041,1763062233267,-2133.90696983,0.00016999,2]
[393877042,1763062233276,-2133.90696983,0.00016999,2]
[393877043,1763062233285,-2133.90696983,0.00016999,2]
[393877044,1763062233295,-2133.90696983,0.00016999,2]
[393877045,1763062233306,-2133.90696983,0.00016999,2]
[393877046,1763062233315,-2133.90696983,0.00016999,2]
[393877047,1763062233326,-499.99999999,0.00016999,2]
[393877048,1763062233336,-500.0,0.00016999,2]
[393877049,1763062233346,-500.0,0.00016999,2]
[393877050,1763062233355,-500.0,0.00016999,2]
[393877051,1763062233363,-500.0,0.00016999,2]
[393877052,1763062233372,-500.0,0.00016999,2]
[393877053,1763062233383,-500.0,0.00016999,2]
[393877054,1763062233392,-500.0,0.00016999,2]
[393877055,1763062233401,-500.0,0.00016999,2]
[393877056,1763062233411,-500.0,0.00016999,2]
[393877057,1763062233419,-2371.00774422,0.00016999,2]
[393877058,1763062233429,-1913.52353194,0.00016999,2]
[393877059,1763062233441,-250.0,0.00017,2]
[393877060,1763062233450,-375.64157914,0.00017,2]
[393877061,1763062233460,-57992.13348484,0.00017,2]
[393877062,1763062233472,-304.35354436,0.00017,2]
[393877063,1763062233499,-463.83999999,0.00017,2]
[393877064,1763062233691,2484.7207572,0.000169,2]
[393877069,1763062237496,-607.11321056,0.00017,2]
[393877070,1763062237555,-1166.16503,0.00017,2]
[393877071,1763062237774,-49749.82848228,0.00017,2]
[393877072,1763062237785,-3875524.93629486,0.00017,2]
[393877073,1763062237795,-242.0,0.00017,2]
[393877074,1763062237804,-150.0,0.00017018,2]
[393877075,1763062237813,-160.0,0.0001702,2]
[393877076,1763062237823,-430.02161934,0.0001702,2]
[393877077,1763062237833,-3818.69200435,0.0001702,2]
[393877079,1763062237843,-166.66,0.00017023,2]
[393877081,1763062237852,-5280.74,0.00017028,2]
[393877083,1763062237861,-485.02396319,0.00017051,2]
[393877085,1763062237872,-151.0,0.00017118,2]
[393877087,1763062237882,-1200.0,0.00017125,2]
[393877089,1763062237892,-9574.93,0.00017129,2]
[393877091,1763062237902,-3818.69200435,0.0001713,2]
[393877093,1763062237911,-150.0,0.00017182,2]
[393877094,1763062237924,-485.02396319,0.00017193,2]
[393877095,1763062237935,-3818.69200435,0.0001724,2]
[393877096,1763062237944,-151.0,0.00017269,2]
[393877097,1763062237954,-151.0,0.00017331,2]
[393877098,1763062237964,-551.48,0.00017332,2]
[393877099,1763062237974,-485.02396319,0.00017334,2]
[393877100,1763062237983,-150.0,0.00017345,2]
[393877101,1763062237994,-3818.69200435,0.0001735,2]
[393877102,1763062238003,-166.66,0.00017353,2]
[393877103,1763062238014,-200.0,0.00017383,2]
[393877104,1763062238024,-351.13383336,0.000174,2]
[393877105,1763062238034,-2484.7207572,0.000174,2]
[393877106,1763062238044,-450.0,0.00017407,2]
[393877107,1763062238054,-151.0,0.00017423,2]
[393877108,1763062238064,-3818.69200435,0.0001746,2]
[393877109,1763062238074,-485.02396319,0.00017476,2]
[393877110,1763062238084,-150.0,0.00017509,2]
[393877111,1763062238093,-151.0,0.00017516,2]
[393877112,1763062238103,-3818.69200435,0.0001757,2]
[393877113,1763062238113,-400.0,0.000176,6]
[393877114,1763062238123,-485.02396319,0.00017617,2]
[393877115,1763062238133,-150.0,0.00017673,2]
[393877116,1763062238143,-3818.69200435,0.0001768,2]
[393877117,1763062238152,-1642.66274877,0.00017699,2]
[393877118,1763062238162,-454.50549844,0.000177,2]
[393877119,1763062238172,-2500.0,0.000177,2]
[393877120,1763062238182,-400.0,0.000177,6]
[393877121,1763062238194,-1642.66274874,0.00017721,2]
[393877122,1763062238204,-454.50549836,0.00017722,2]
[393877123,1763062238214,-1642.66274874,0.00017744,2]
[393877124,1763062238224,-454.50549836,0.00017744,2]
[393877125,1763062238234,-485.02396319,0.00017759,2]
[393877126,1763062238244,-1642.66274874,0.00017766,2]
[393877127,1763062238254,-454.50549836,0.00017767,2]
[393877128,1763062238264,-500.0,0.00017773,2]
[393877129,1763062238273,-500.0,0.00017773,2]
[393877130,1763062238283,-507.32409942,0.00017773,2]
[393877131,1763062238292,-500.0,0.00017773,2]
[393877132,1763062238301,-500.0,0.00017773,2]
[393877133,1763062238311,-164.70747778,0.00017773,2]
[393877134,1763062238322,-500.0,0.00017773,2]
[393877135,1763062238331,-626.36620621,0.00017773,2]
[393877136,1763062238341,-152.06591262,0.00017773,2]
[393877137,1763062238350,-500.0,0.00017773,2]
[393877138,1763062238360,-500.0,0.00017773,2]
[393877139,1763062238369,-1642.66274874,0.00017788,2]
[393877140,1763062238381,-454.50549836,0.00017789,2]
[393877141,1763062238390,-239.78,0.00017789,3]
[393877142,1763062238400,-3818.69200435,0.0001779,2]
[393877143,1763062238410,-500.0,0.00017799,2]
[393877144,1763062238419,-305.13,0.00017799,2]
[393877145,1763062238440,-500.0,0.00017799,2]
[393877146,1763062238456,-346.47479216,0.00017799,2]
[393877147,1763062238478,-300.0,0.00017799,2]
[393877148,1763062238499,-420000.0,0.000178,2]
[393877149,1763062238515,-1855.0,0.000178,2]
[393877150,1763062238534,-400.0,0.000178,6]
[393877151,1763062238555,-1642.66274874,0.00017811,2]
[393877152,1763062238574,-454.50549836,0.00017811,2]
[393877153,1763062238595,-1642.66274874,0.00017833,2]
[393877154,1763062238614,-454.50549836,0.00017833,2]
[393877155,1763062238634,-150.0,0.00017836,2]
[393877156,1763062238652,-200.0,0.00017855,2]
[393877157,1763062238667,-1642.66274874,0.00017855,2]
[393877158,1763062238686,-200.0,0.00017856,2]
[393877159,1763062238700,-454.50549836,0.00017856,2]
[393877160,1763062238719,-200.0,0.00017856,2]
[393877161,1763062238732,-200.0,0.00017856,2]
[393877162,1763062238747,-1642.66274874,0.00017878,2]
[393877163,1763062238765,-454.50549836,0.00017878,2]
[393877164,1763062238781,-1188.01770828,0.000179,2]
[393877165,1763062238797,-1000.0,0.000179,2]
[393877166,1763062238812,-366.67730079,0.000179,2]
[393877167,1763062238828,-2426.0152136,0.000179,2]
[393877168,1763062238843,-1642.66274874,0.000179,2]
[393877169,1763062238858,-1433.95565125,0.000179,2]
[393877170,1763062238873,-454.50549836,0.000179,2]
[393877171,1763062238895,-485.02396319,0.000179,2]
[393877172,1763062238910,-3818.69200435,0.000179,2]
[393877173,1763062238926,-400.0,0.000179,6]
[393877174,1763062238942,-351.13383336,0.000179,2]
[393877175,1763062238960,-500.0,0.00017937,2]
[393877176,1763062238975,-300.0,0.00017937,2]
[393877177,1763062238991,-45337.9571987,0.00017938,2]
[393877178,1763062239005,-518.01248713,0.00017973,2]
[393877179,1763062239020,-331.20277471,0.00017973,2]
[393877180,1763062239038,-500.0,0.00017973,2]
[393877181,1763062239053,-500.0,0.00017973,2]
[393877182,1763062239071,-500.0,0.00017973,2]
[393877183,1763062239086,-500.0,0.00017973,2]
[393877184,1763062239102,-160.68447692,0.00017973,2]
[393877185,1763062239117,-500.0,0.00017973,2]
[393877186,1763062239133,-500.0,0.00017973,2]
[393877187,1763062239148,-352.74427323,0.00017973,2]
[393877188,1763062239162,-500.0,0.00017973,2]
[393877189,1763062239178,-501.86872129,0.00017973,2]
[393877190,1763062239195,-169.2044629,0.00017982,2]
[393877191,1763062239211,-151.21943385,0.00017982,2]
[393877192,1763062239226,-2313.95426267,0.0001799,2]
[393877193,1763062239241,-500.0,0.00017998,2]
[393877194,1763062239256,-500.0,0.00017998,2]
[393877195,1763062239272,-562.30427097,0.00017998,2]
[393877198,1763062239287,-164.62650996,0.00017999,2]
[393877200,1763062239302,-500.0,0.00017999,2]
[393877202,1763062239317,-500.0,0.00017999,2]
[393877204,1763062239333,-500.0,0.00017999,2]
[393877205,1763062239348,-500.0,0.00017999,2]
[393877206,1763062239363,-507.90035275,0.00017999,2]
[393877207,1763062239379,-300.0,0.00017999,2]
[393877208,1763062239394,-500.0,0.00017999,2]
[393877209,1763062239409,-165.06162252,0.00017999,2]
[393877210,1763062239427,-300.0,0.00017999,2]
[393877211,1763062239443,-300.0,0.00017999,2]
[393877212,1763062239459,-1045.12569772,0.00017999,5]
[393877213,1763062239475,-1045.12569772,0.00017999,5]
[393877214,1763062239491,-1045.12569773,0.00017999,5]
[393877215,1763062239506,-300.0,0.00017999,2]
[393877216,1763062239521,-150.00000001,0.00018,2]
[393877217,1763062239536,-5688510.26505775,0.00018,2]
[393877218,1763062239552,-10799507.81573285,0.00018,2]
[393877219,1763062239572,-1973.48,0.00018,2]
[393877221,1763062240407,-662.40010165,0.00018,2]
[393877222,1763062240428,-382.75809896,0.00018,2]
[393877223,1763062240442,-4264.42865808,0.00018,2]
[393877224,1763062240454,-567.38928716,0.00018,2]
[393877225,1763062240465,-344.25589999,0.00018,2]
[393877226,1763062240476,-6451.3538573,0.00018,2]
[393877227,1763062240487,-1523.58260079,0.00018,2]
[393877228,1763062240498,-528.4183752,0.00018,2]
[393877229,1763062240533,-991.52231403,0.00018,2]
[393877230,1763062241304,-1.7e-07,0.00018,2]
[393877251,1763062244262,-551.58075001,0.000179,2]
[393877253,1763062244273,-285.41469993,0.000179,2]
[393877255,1763062244285,-1647.72530726,0.000179,2]
[393877257,1763062244294,-7423.39658422,0.00018,2]
[393877258,1763062244305,-401.28,0.00018,2]
[393877259,1763062244326,-4041.23246187,0.00018,2]
[393877260,1763062244349,-285.70296496,0.00018,2]
[393877261,1763062244586,-208.50221314,0.00017517,3]
[393877262,1763062244595,-115.46943689,0.00018,2]
[393877263,1763062244606,-1659.28712785,0.00018,2]
[393877264,1763062244618,-258987.65539713,0.00018,2]
[393877265,1763062244628,-864.86399995,0.00018,2]
[393877266,1763062244639,-37442.95901343,0.00018,2]
[393877277,1763062245562,-46198.39393851,0.00018,2]
[393877281,1763062245618,-170.113,0.00017621,2]
[393877283,1763062245628,-5754.61850246,0.00018,2]
[393877284,1763062245640,-4716.83218707,0.00018,2]
[393877287,1763062245675,-315.82987867,0.00018,2]
[393877292,1763062246731,-20616.78413915,0.00018,2]
[393877293,1763062247071,-1150.47099745,0.00018,2]
[393877294,1763062247082,-695.555,0.00018,2]
[393877300,1763062247172,-9958.42846971,0.00018,2]
[393877304,1763062247204,-9863.82840026,0.00018,2]
[393877307,1763062247223,-469.52258584,0.00018,2]
[393877326,1763062248259,792.33086848,0.000169,2]
[393877327,1763062261123,500.0,0.00016999,2]
[393877328,1763062261233,443.73507614,0.00016999,2]
[393877337,1763062268330,100.12452497,7.945e-05,2]
[393877338,1763062268353,471.45033503,7.945e-05,2]
[393877362,1763062286589,500.0,0.00016999,2]
[393877363,1763062286850,500.0,0.00016999,2]
[393877364,1763062287138,500.0,0.00016999,2]
[393877365,1763062287390,500.0,0.00016999,2]
[393877366,1763062287637,347.29333909,0.00016999,2]
[393877367,1763062294177,-436.90498548,0.00016999,2]
[393877368,1763062296718,-63.09501452,0.00016999,2]
[393877369,1763062296743,-103.56498531,0.00016999,2]
[393877370,1763062308821,500.0,0.00016999,2]
[393877371,1763062309089,500.0,0.00016999,2]
[393877372,1763062309367,500.0,0.00016999,2]
[393877373,1763062309626,500.0,0.00016999,2]
[393877374,1763062309904,500.0,0.00016999,2]
[393877375,1763062310126,500.0,0.00016999,2]
[393877376,1763062310373,500.0,0.00016999,2]
[393877377,1763062310617,649.93787883,0.00016999,2]
[393877378,1763062325446,151.0,0.00040867,30]
[393877379,1763062326014,-48.86398642,0.00016999,2]
[393877380,1763062326036,-451.13601358,0.00016999,2]
[393877381,1763062326085,151.0,0.00040867,30]
[393877382,1763062326685,151.0,0.00040867,30]
[393877383,1763062327273,151.0,0.00040867,30]
[393877384,1763062327918,151.0,0.00040867,30]
[393877385,1763062328036,-48.86398642,0.00016999,2]
[393877386,1763062328066,-209.07775079,0.00016999,2]
[393877387,1763062328522,151.0,0.00040867,30]
[393877388,1763062329163,151.0,0.00040867,30]
[393877389,1763062329946,151.0,0.00040867,30]
[393877390,1763062330111,-312.85952849,0.00016999,2]
[393877391,1763062330337,-6.71282504,0.00016999,2]
[393877392,1763062330570,153.20968267,0.00016757,2]
[393877393,1763062330602,151.0,0.00040867,30]
[393877394,1763062331204,151.0,0.00040867,30]
[393877395,1763062331806,151.0,0.00040867,30]
[393877396,1763062332405,151.0,0.00040867,30]
[393877397,1763062334079,-223.0775326,0.00016999,2]
[393877398,1763062335209,151.0,0.00040867,30]
[393877399,1763062337222,-210.28614861,0.00016999,2]
[393877400,1763062339262,-81.86077303,0.00016999,2]
[393877401,1763062339289,-144.03215663,0.00016999,2]
[393877402,1763062341995,-178.86137391,0.00016999,2]
[393877403,1763062343493,-199.04374874,0.00016999,2]
[393877404,1763062343529,-154.99675159,0.00016999,2]
[393877407,1763062350592,-366.94052769,0.00016999,2]
[393877408,1763062350617,-28.06768644,0.00016999,2]
[393877409,1763062353199,-244.83522882,0.00016999,2]
[393877411,1763062354634,-249.03436402,0.00016999,2]
[393877412,1763062354659,-200.00784254,0.00016999,2]
[393877413,1763062357581,-236.3723841,0.00016999,2]
[393877414,1763062359071,-85.55705264,0.00016999,2]
[393877415,1763062359097,-414.44294736,0.00016999,2]
[393877416,1763062360596,500.0,0.00016999,2]
[393877417,1763062360859,500.0,0.00016999,2]
[393877418,1763062361108,332.10480629,0.00016999,2]
[393877419,1763062361190,-107.49433192,0.00016999,2]
[393877420,1763062361218,-137.6748079,0.00016999,2]
[393877421,1763062362824,-224.40333237,0.00016999,2]
[393877422,1763062364012,1200.0,0.00016998,2]
[393877423,1763062365244,-159.85913901,0.00016999,2]
[393877424,1763062365271,-140.14086099,0.00016999,2]
[393877425,1763062366844,-223.66125096,0.00016999,2]
[393877432,1763062368275,-151.0,0.00016999,2]
[393877438,1763062375604,-7.13516733,0.00016999,2]
[393877439,1763062375631,-216.72728383,0.00016999,2]
[393877440,1763062378374,-305.20999545,0.00016999,2]
[393877441,1763062378412,-84.63352063,0.00016999,2]
[393877443,1763062379948,-300.0616641,0.00016999,2]
[393877444,1763062380379,346.01395809,0.00016999,2]
[393877445,1763062380639,221.0730616,0.00016999,2]
[393877446,1763062381777,550.0,0.00016998,2]
[393877447,1763062383511,-137.24209455,0.00016999,2]
[393877448,1763062383535,-150.27923657,0.00016999,2]
[393877449,1763062385291,500.0,0.00016999,2]
[393877450,1763062385523,500.0,0.00016999,2]
[393877451,1763062385766,500.0,0.00016999,2]
[393877452,1763062386014,500.0,0.00016999,2]
[393877453,1763062386179,-371.65804271,0.00016999,2]
[393877454,1763062386205,-128.34195729,0.00016999,2]
[393877455,1763062386243,500.0,0.00016999,2]
[393877456,1763062386512,500.0,0.00016999,2]
[393877457,1763062387295,500.0,0.00016999,2]
[393877458,1763062387400,500.0,0.00016999,2]
[393877459,1763062387466,500.0,0.00016999,2]
[393877460,1763062387542,500.0,0.00016999,2]
[393877461,1763062387731,500.0,0.00016999,2]
[393877462,1763062389299,-181.06273026,0.00016999,2]
[393877463,1763062390795,-187.11921967,0.00016999,2]
[393877464,1763062392079,353.7585125,0.00016999,2]
[393877465,1763062392317,-25.41337206,0.00016999,2]
[393877466,1763062392346,-153.19793546,0.00016999,2]
[393877467,1763062393121,500.0,0.00016999,2]
[393877468,1763062393554,440.69894426,0.00016999,2]
[393877469,1763062393940,605.34974872,0.00041003,30]
[393877470,1763062394231,-221.77980403,0.00016999,2]
[393877471,1763062398871,-146.95953979,0.00016999,2]
[393877472,1763062398898,-17.03738776,0.00016999,2]
[393877473,1763062400245,2434.47948164,0.00016915,2]
[393877474,1763062400267,243.26051836,0.00016915,2]
[393877475,1763062401457,-273.98198411,0.00016999,2]
[393877476,1763062407174,-230.91790741,0.00016999,2]
[393877477,1763062407201,-142.17444452,0.00016999,2]
[393877478,1763062408727,-240.22591771,0.00016999,2]
[393877479,1763062410738,-139.53691705,0.00016999,2]
[393877480,1763062410764,-331.0684328,0.00016999,2]
[393877481,1763062412022,500.0,0.00016999,2]
[393877482,1763062412436,500.0,0.00016999,2]
[393877483,1763062412671,500.0,0.00016999,2]
[393877484,1763062412881,40000.0,0.00041003,30]
[393877485,1763062413044,500.0,0.00016999,2]
[393877486,1763062413154,500.0,0.00016999,2]
[393877487,1763062413402,500.0,0.00016999,2]
[393877488,1763062413645,500.0,0.00016999,2]
[393877489,1763062413877,500.0,0.00016999,2]